fUSD/lending_fUSD_20250103
["ID","MTS","AMOUNT","RATE_DAILY","PERIOD"]
[347517426,1735899037520,-500.0,8.995e-05,2]
[347517428,1735899037530,-1251.3,8.995e-05,2]
[347517429,1735899037540,-500.0,8.995e-05,2]
[347517430,1735899037549,-454.98434993,8.995e-05,2]
[347517431,1735899037558,-500.0,8.995e-05,2]
[347517432,1735899037567,-500.0,8.995e-05,2]
[347517433,1735899037576,-500.0,8.995e-05,2]
[347517434,1735899037586,-500.0,8.995e-05,2]
[347517435,1735899037596,-1032.62,8.995e-05,2]
[347517436,1735899037605,-500.0,8.995e-05,2]
[347517437,1735899037615,-500.0,8.995e-05,2]
[347517438,1735899037624,-1273.71,8.995e-05,2]
[347517439,1735899037633,-549.76340761,8.995e-05,2]
[347517440,1735899037643,-501.57414183,8.995e-05,2]
[347517441,1735899037652,-500.0,8.995e-05,2]
[347517442,1735899037662,-500.0,8.995e-05,2]
[347517443,1735899037671,-500.0,8.995e-05,2]
[347517444,1735899037680,-502.95205838,8.995e-05,2]
[347517445,1735899037690,-500.0,8.995e-05,2]
[347517446,1735899037699,-500.0,8.995e-05,2]
[347517447,1735899037711,-500.0,8.995e-05,2]
[347517448,1735899037720,-500.0,8.995e-05,2]
[347517449,1735899037730,-642.8,8.995e-05,2]
[347517450,1735899037739,-500.0,8.995e-05,2]
[347517451,1735899037749,-500.0,8.995e-05,2]
[347517452,1735899037758,-500.0,8.995e-05,2]
[347517453,1735899037767,-501.79615603,8.995e-05,2]
[347517454,1735899037776,-500.0,8.995e-05,2]
[347517455,1735899037786,-500.0,8.995e-05,2]
[347517456,1735899037799,-500.0,8.995e-05,2]
[347517457,1735899037809,-500.0,8.995e-05,2]
[347517458,1735899037818,-500.14240008,8.995e-05,2]
[347517459,1735899037828,-500.0,8.995e-05,2]
[347517460,1735899037838,-1321.31,8.995e-05,2]
[347517461,1735899037847,-1443.88,8.995e-05,2]
[347517462,1735899037857,-1000.0,8.995e-05,2]
[347517463,1735899037866,-500.0,8.995e-05,2]
[347517464,1735899037876,-500.0,8.995e-05,2]
[347517465,1735899037886,-500.0,8.995e-05,2]
[347517466,1735899037895,-500.0,8.995e-05,2]
[347517467,1735899037905,-500.0,8.995e-05,2]
[347517468,1735899037915,-1441.56,8.995e-05,2]
[347517469,1735899037924,-500.0,8.995e-05,2]
[347517470,1735899037933,-500.0,8.995e-05,2]
[347517471,1735899037943,-1131.48,8.995e-05,2]
[347517472,1735899037952,-500.0,8.995e-05,2]
[347517473,1735899037963,-504.5180952,8.995e-05,2]
[347517474,1735899037973,-500.0,8.995e-05,2]
[347517475,1735899037984,-500.0,8.995e-05,2]
[347517476,1735899037998,-500.0,8.995e-05,2]
[347517478,1735899038008,-500.0,8.995e-05,2]
[347517480,1735899038017,-500.0,8.995e-05,2]
[347517482,1735899038027,-500.0,8.995e-05,2]
[347517484,1735899038037,-500.0,8.995e-05,2]
[347517485,1735899038047,-500.0,8.995e-05,2]
[347517486,1735899038056,-500.0,8.995e-05,2]
[347517487,1735899038066,-500.0,8.995e-05,2]
[347517488,1735899038075,-500.0,8.995e-05,2]
[347517489,1735899038084,-539.46333835,8.995e-05,2]
[347517490,1735899038095,-500.0,8.995e-05,2]
[347517491,1735899038104,-539.73,8.995e-05,2]
[347517492,1735899038114,-915.55512966,8.995e-05,2]
[347517497,1735899041553,-2225.81963017,7.842e-05,2]
[347517498,1735899041563,-500.0,8.992e-05,2]
[347517499,1735899041573,-5372.13,8.993e-05,2]
[347517500,1735899041583,-763.69,8.993e-05,2]
[347517501,1735899041593,-453.99994466,8.994e-05,2]
[347517502,1735899041604,-1165.9087451,8.994e-05,2]
[347517503,1735899041647,-1581.32131024,8.994e-05,2]
[347517504,1735899041657,-27.97487034,8.995e-05,2]
[347517505,1735899041667,-500.0,8.995e-05,2]
[347517506,1735899041677,-795.15,8.995e-05,2]
[347517507,1735899041685,-733.64,8.995e-05,2]
[347517508,1735899041694,-522.39,8.995e-05,2]
[347517509,1735899041703,-500.0,8.995e-05,2]
[347517510,1735899041714,-500.0,8.995e-05,2]
[347517511,1735899041723,-193.64494794,8.995e-05,2]
[347517512,1735899041771,-306.35505206,8.995e-05,2]
[347517513,1735899041780,-275.06290681,8.995e-05,2]
[347517514,1735899041796,-224.93709319,8.995e-05,2]
[347517515,1735899041805,-328.47581869,8.995e-05,2]
[347517516,1735899042187,-350.20418131,8.995e-05,2]
[347517517,1735899042197,-649.78580869,8.995e-05,2]
[347517518,1735899042210,-280.77105988,8.995e-05,2]
[347517519,1735899042224,-321.82313143,8.995e-05,2]
[347517520,1735899042233,-6525.65,8.995e-05,2]
[347517521,1735899042242,-500.0,8.995e-05,2]
[347517522,1735899042252,-500.0,8.995e-05,2]
[347517523,1735899042262,-523.88798583,8.995e-05,2]
[347517524,1735899042272,-500.0,8.995e-05,2]
[347517525,1735899042282,-503.74735661,8.995e-05,2]
[347517526,1735899042290,-585.71,8.995e-05,2]
[347517527,1735899042300,-502.43948141,8.995e-05,2]
[347517528,1735899042309,-5808.88,8.995e-05,2]
[347517529,1735899042318,-1544.27,8.995e-05,2]
[347517530,1735899042327,-500.0,8.995e-05,2]
[347517531,1735899042336,-540.89,8.995e-05,2]
[347517532,1735899042346,-573.79,8.995e-05,2]
[347517533,1735899042355,-500.0,8.995e-05,2]
[347517534,1735899042364,-2009.08,8.995e-05,2]
[347517535,1735899042373,-500.0,8.995e-05,2]
[347517536,1735899042383,-10175.48,8.995e-05,2]
[347517537,1735899042392,-1109.23846147,8.995e-05,2]
[347517538,1735899042409,-240.35153853,8.995e-05,2]
[347517539,1735899042419,-500.0,8.995e-05,2]
[347517540,1735899042428,-500.0,8.995e-05,2]
[347517541,1735899042437,-500.0,8.995e-05,2]
[347517542,1735899042446,-500.0,8.995e-05,2]
[347517543,1735899042455,-815.01,8.995e-05,2]
[347517544,1735899042466,-714.40193071,8.995e-05,2]
[347517545,1735899042486,-756.58806929,8.995e-05,2]
[347517546,1735899042496,-500.0,8.995e-05,2]
[347517547,1735899042508,-8073.75,8.995e-05,2]
[347517548,1735899042518,-500.0,8.995e-05,2]
[347517549,1735899042528,-500.0,8.995e-05,2]
[347517550,1735899042537,-588.46819862,8.995e-05,2]
[347517551,1735899042547,-500.0,8.995e-05,2]
[347517552,1735899042558,-500.0,8.995e-05,2]
[347517553,1735899042568,-500.0,8.995e-05,2]
[347517554,1735899042579,-989.46,8.995e-05,2]
[347517555,1735899042588,-500.0,8.995e-05,2]
[347517556,1735899042598,-429.32523994,8.995e-05,2]
[347517557,1735899042608,-1117.95,8.995e-05,2]
[347517558,1735899042618,-741.62,8.995e-05,2]
[347517559,1735899042628,-500.0,8.995e-05,2]
[347517560,1735899042638,-1147.25,8.995e-05,2]
[347517561,1735899042648,-580.78,8.995e-05,2]
[347517562,1735899042657,-500.0,8.995e-05,2]
[347517563,1735899042666,-1180.98,8.995e-05,2]
[347517564,1735899042677,-503.90641508,8.995e-05,2]
[347517565,1735899042687,-500.0,8.995e-05,2]
[347517566,1735899042698,-500.0,8.995e-05,2]
[347517567,1735899042709,-500.0,8.995e-05,2]
[347517568,1735899042720,-1324.35,8.995e-05,2]
[347517569,1735899042729,-500.0,8.995e-05,2]
[347517570,1735899042739,-852.43,8.995e-05,2]
[347517571,1735899042748,-479.38156646,8.995e-05,2]
[347517572,1735899042758,-500.0,8.995e-05,2]
[347517573,1735899042768,-500.0,8.995e-05,2]
[347517574,1735899042778,-822.78,8.995e-05,2]
[347517575,1735899042787,-500.0,8.995e-05,2]
[347517576,1735899042801,-501.65991163,8.995e-05,2]
[347517577,1735899042811,-790.68,8.995e-05,2]
[347517578,1735899042820,-1625.92,8.995e-05,2]
[347517579,1735899042830,-5308.49,8.995e-05,2]
[347517580,1735899042840,-500.0,8.995e-05,2]
[347517581,1735899042849,-500.0,8.995e-05,2]
[347517582,1735899042859,-828.54,8.995e-05,2]
[347517583,1735899042868,-806.97,8.995e-05,2]
[347517584,1735899042878,-687.88,8.995e-05,2]
[347517585,1735899042887,-829.61,8.995e-05,2]
[347517586,1735899042897,-610.99,8.995e-05,2]
[347517587,1735899042906,-500.0,8.995e-05,2]
[347517588,1735899042915,-500.0,8.995e-05,2]
[347517589,1735899042924,-500.0,8.995e-05,2]
[347517590,1735899042933,-361.09407185,8.995e-05,2]
[347517591,1735899042946,-10329.50592815,8.995e-05,2]
[347517592,1735899042955,-606.33,8.995e-05,2]
[347517593,1735899042964,-502.03997264,8.995e-05,2]
[347517594,1735899042973,-1165.73,8.995e-05,2]
[347517595,1735899042982,-500.0,8.995e-05,2]
[347517596,1735899042991,-500.0,8.995e-05,2]
[347517597,1735899043000,-575.04,8.995e-05,2]
[347517598,1735899043010,-500.0,8.995e-05,2]
[347517599,1735899043019,-500.0,8.995e-05,2]
[347517600,1735899043028,-502.35385902,8.995e-05,2]
[347517601,1735899043038,-500.0,8.995e-05,2]
[347517602,1735899043047,-500.0,8.995e-05,2]
[347517603,1735899043056,-500.0,8.995e-05,2]
[347517604,1735899043065,-500.0,8.995e-05,2]
[347517605,1735899043075,-1388.52,8.995e-05,2]
[347517606,1735899043084,-516.28,8.995e-05,2]
[347517607,1735899043094,-2092.91,8.995e-05,2]
[347517608,1735899043103,-512.38,8.995e-05,2]
[347517609,1735899043112,-500.0,8.995e-05,2]
[347517610,1735899043122,-501.5324157,8.995e-05,2]
[347517611,1735899043131,-500.0,8.995e-05,2]
[347517612,1735899043140,-2516.28,8.995e-05,2]
[347517613,1735899043149,-398.23740876,8.995e-05,2]
[347517614,1735899043160,-500.0,8.995e-05,2]
[347517615,1735899043170,-1007.49,8.995e-05,2]
[347517616,1735899043180,-3486.65,8.995e-05,2]
[347517617,1735899043190,-500.0,8.995e-05,2]
[347517618,1735899043199,-500.0,8.995e-05,2]
[347517619,1735899043208,-913.75,8.995e-05,2]
[347517620,1735899043218,-500.0,8.995e-05,2]
[347517621,1735899043227,-241.07608597,8.995e-05,2]
[347517622,1735899043236,-634.62,8.995e-05,2]
[347517623,1735899043246,-500.0,8.995e-05,2]
[347517624,1735899043255,-500.0,8.995e-05,2]
[347517625,1735899043263,-905.63,8.995e-05,2]
[347517626,1735899043273,-500.0,8.995e-05,2]
[347517627,1735899043282,-500.0,8.995e-05,2]
[347517628,1735899043291,-1621.99,8.995e-05,2]
[347517629,1735899043301,-500.0,8.995e-05,2]
[347517630,1735899043311,-1629.01,8.995e-05,2]
[347517631,1735899043320,-500.0,8.995e-05,2]
[347517632,1735899043329,-500.0,8.995e-05,2]
[347517633,1735899043339,-669.85,8.995e-05,2]
[347517634,1735899043348,-824.39,8.995e-05,2]
[347517635,1735899043357,-536.65,8.995e-05,2]
[347517636,1735899043367,-500.0,8.995e-05,2]
[347517637,1735899043377,-527.65,8.995e-05,2]
[347517638,1735899043387,-500.0,8.995e-05,2]
[347517639,1735899043396,-500.0,8.995e-05,2]
[347517640,1735899043406,-836.84,8.995e-05,2]
[347517641,1735899043415,-664.81,8.995e-05,2]
[347517642,1735899043424,-673.1,8.995e-05,2]
[347517643,1735899043434,-500.0,8.995e-05,2]
[347517644,1735899043443,-500.0,8.995e-05,2]
[347517645,1735899043454,-500.0,8.995e-05,2]
[347517646,1735899043463,-500.0,8.995e-05,2]
[347517647,1735899043473,-500.0,8.995e-05,2]
[347517648,1735899043482,-500.0,8.995e-05,2]
[347517649,1735899043491,-500.0,8.995e-05,2]
[347517650,1735899043500,-1595.45,8.995e-05,2]
[347517651,1735899043511,-500.93442923,8.995e-05,2]
[347517652,1735899043520,-500.0,8.995e-05,2]
[347517653,1735899043529,-785.12,8.995e-05,2]
[347517654,1735899043539,-1779.33,8.995e-05,2]
[347517655,1735899043549,-500.0,8.995e-05,2]
[347517656,1735899043558,-603.63,8.995e-05,2]
[347517657,1735899043568,-1071.75,8.995e-05,2]
[347517658,1735899043577,-500.0,8.995e-05,2]
[347517659,1735899043586,-938.09,8.995e-05,2]
[347517660,1735899043595,-500.0,8.995e-05,2]
[347517661,1735899043604,-1353.46,8.995e-05,2]
[347517662,1735899043613,-500.0,8.995e-05,2]
[347517663,1735899043623,-500.0,8.995e-05,2]
[347517664,1735899043632,-1071.46,8.995e-05,2]
[347517665,1735899043642,-500.0,8.995e-05,2]
[347517666,1735899043652,-713.7,8.995e-05,2]
[347517667,1735899043661,-500.0,8.995e-05,2]
[347517668,1735899043670,-525.29,8.995e-05,2]
[347517669,1735899043679,-1422.94,8.995e-05,2]
[347517670,1735899043689,-500.0,8.995e-05,2]
[347517671,1735899043698,-500.0,8.995e-05,2]
[347517672,1735899043708,-593.7,8.995e-05,2]
[347517673,1735899043717,-1609.12,8.995e-05,2]
[347517674,1735899043727,-500.0,8.995e-05,2]
[347517675,1735899043736,-2920.91,8.995e-05,2]
[347517676,1735899043745,-500.0,8.995e-05,2]
[347517677,1735899043755,-500.0,8.995e-05,2]
[347517678,1735899043764,-569.96,8.995e-05,2]
[347517679,1735899043773,-500.0,8.995e-05,2]
[347517680,1735899043782,-500.0,8.995e-05,2]
[347517681,1735899043792,-500.0,8.995e-05,2]
[347517682,1735899043802,-2451.94,8.995e-05,2]
[347517683,1735899043811,-500.0,8.995e-05,2]
[347517684,1735899043822,-1714.79,8.995e-05,2]
[347517685,1735899043831,-500.0,8.995e-05,2]
[347517686,1735899043843,-500.0,8.995e-05,2]
[347517687,1735899043852,-500.0,8.995e-05,2]
[347517688,1735899043862,-500.0,8.995e-05,2]
[347517689,1735899043873,-1456.42,8.995e-05,2]
[347517690,1735899043882,-500.0,8.995e-05,2]
[347517691,1735899043892,-500.0,8.995e-05,2]
[347517692,1735899043900,-500.0,8.995e-05,2]
[347517693,1735899043910,-500.0,8.995e-05,2]
[347517694,1735899043919,-500.0,8.995e-05,2]
[347517695,1735899043928,-500.0,8.995e-05,2]
[347517696,1735899043938,-500.0,8.995e-05,2]
[347517697,1735899043947,-500.0,8.995e-05,2]
[347517698,1735899043956,-1419.9,8.995e-05,2]
[347517699,1735899043965,-500.0,8.995e-05,2]
[347517700,1735899043974,-507.77545151,8.995e-05,2]
[347517701,1735899043983,-1068.93,8.995e-05,2]
[347517702,1735899043993,-1288.57,8.995e-05,2]
[347517703,1735899044002,-500.0,8.995e-05,2]
[347517704,1735899044012,-5075.92,8.995e-05,2]
[347517705,1735899044021,-2262.99,8.995e-05,2]
[347517706,1735899044030,-500.0,8.995e-05,2]
[347517707,1735899044039,-500.0,8.995e-05,2]
[347517708,1735899044050,-1580.76,8.995e-05,2]
[347517709,1735899044059,-500.0,8.995e-05,2]
[347517710,1735899044068,-500.0,8.995e-05,2]
[347517711,1735899044077,-500.0,8.995e-05,2]
[347517712,1735899044087,-500.0,8.995e-05,2]
[347517713,1735899044096,-500.0,8.995e-05,2]
[347517714,1735899044105,-500.0,8.995e-05,2]
[347517715,1735899044114,-500.0,8.995e-05,2]
[347517716,1735899044124,-500.0,8.995e-05,2]
[347517717,1735899044133,-500.0,8.995e-05,2]
[347517718,1735899044142,-1076.28,8.995e-05,2]
[347517719,1735899044151,-500.0,8.995e-05,2]
[347517720,1735899044160,-611.99,8.995e-05,2]
[347517721,1735899044170,-500.0,8.995e-05,2]
[347517722,1735899044179,-277.65449089,8.995e-05,2]
[347517723,1735899044188,-500.0,8.995e-05,2]
[347517724,1735899044198,-1094.84,8.995e-05,2]
[347517725,1735899044207,-500.0,8.995e-05,2]
[347517726,1735899044217,-500.0,8.995e-05,2]
[347517727,1735899044227,-500.0,8.995e-05,2]
[347517728,1735899044236,-1851.28,8.995e-05,2]
[347517729,1735899044245,-500.0,8.995e-05,2]
[347517730,1735899044255,-500.0,8.995e-05,2]
[347517731,1735899044264,-512.33,8.995e-05,2]
[347517732,1735899044275,-1346.81,8.995e-05,2]
[347517733,1735899044286,-500.0,8.995e-05,2]
[347517734,1735899044297,-500.0,8.995e-05,2]
[347517735,1735899044306,-500.0,8.995e-05,2]
[347517736,1735899044315,-500.0,8.995e-05,2]
[347517737,1735899044325,-410.74950448,8.995e-05,2]
[347517738,1735899044335,-5395.21,8.995e-05,2]
[347517739,1735899044345,-500.0,8.995e-05,2]
[347517740,1735899044354,-500.0,8.995e-05,2]
[347517741,1735899044363,-2187.74,8.995e-05,2]
[347517742,1735899044373,-334.76578344,8.995e-05,2]
[347517743,1735899044383,-500.0,8.995e-05,2]
[347517744,1735899044392,-500.0,8.995e-05,2]
[347517745,1735899044402,-500.0,8.995e-05,2]
[347517746,1735899044410,-1083.27,8.995e-05,2]
[347517747,1735899044420,-909.34,8.995e-05,2]
[347517748,1735899044431,-500.0,8.995e-05,2]
[347517749,1735899044441,-991.2,8.995e-05,2]
[347517750,1735899044451,-500.0,8.995e-05,2]
[347517751,1735899044461,-4382.33,8.995e-05,2]
[347517752,1735899044470,-810.22,8.995e-05,2]
[347517753,1735899044479,-2463.78,8.995e-05,2]
[347517754,1735899044488,-500.0,8.995e-05,2]
[347517755,1735899044498,-505.48,8.995e-05,2]
[347517756,1735899044507,-404.53570619,8.995e-05,2]
[347517757,1735899044516,-1511.93,8.995e-05,2]
[347517758,1735899044525,-500.0,8.995e-05,2]
[347517759,1735899044534,-713.42,8.995e-05,2]
[347517760,1735899044544,-681.82,8.995e-05,2]
[347517761,1735899044553,-500.0,8.995e-05,2]
[347517762,1735899044562,-1729.67,8.995e-05,2]
[347517763,1735899044571,-500.0,8.995e-05,2]
[347517764,1735899044581,-500.0,8.995e-05,2]
[347517765,1735899044592,-1890.41,8.995e-05,2]
[347517766,1735899044600,-500.0,8.995e-05,2]
[347517767,1735899044610,-861.91,8.995e-05,2]
[347517768,1735899044619,-500.0,8.995e-05,2]
[347517769,1735899044628,-623.27,8.995e-05,2]
[347517770,1735899044637,-2615.61,8.995e-05,2]
[347517771,1735899044647,-500.0,8.995e-05,2]
[347517772,1735899044655,-928.04,8.995e-05,2]
[347517773,1735899044664,-500.0,8.995e-05,2]
[347517774,1735899044673,-500.0,8.995e-05,2]
[347517775,1735899044682,-485.31815395,8.995e-05,2]
[347517776,1735899044691,-500.0,8.995e-05,2]
[347517777,1735899044701,-1603.33,8.995e-05,2]
[347517778,1735899044711,-1790.99,8.995e-05,2]
[347517779,1735899044724,-500.0,8.995e-05,2]
[347517780,1735899044733,-1181.17,8.995e-05,2]
[347517781,1735899044741,-5029.15,8.995e-05,2]
[347517782,1735899044750,-900.44,8.995e-05,2]
[347517783,1735899044759,-500.0,8.995e-05,2]
[347517784,1735899044768,-500.0,8.995e-05,2]
[347517785,1735899044777,-500.0,8.995e-05,2]
[347517786,1735899044786,-659.5,8.995e-05,2]
[347517787,1735899044798,-500.0,8.995e-05,2]
[347517788,1735899044808,-1537.5,8.995e-05,2]
[347517789,1735899044818,-518.18,8.995e-05,2]
[347517790,1735899044827,-500.0,8.995e-05,2]
[347517791,1735899044839,-500.0,8.995e-05,2]
[347517792,1735899044848,-1052.56,8.995e-05,2]
[347517793,1735899044857,-1221.8,8.995e-05,2]
[347517794,1735899044867,-500.0,8.995e-05,2]
[347517795,1735899044876,-1221.9,8.995e-05,2]
[347517796,1735899044886,-703.29,8.995e-05,2]
[347517797,1735899044895,-500.0,8.995e-05,2]
[347517798,1735899044904,-500.0,8.995e-05,2]
[347517799,1735899044914,-1568.73,8.995e-05,2]
[347517800,1735899044923,-500.0,8.995e-05,2]
[347517801,1735899044932,-770.89,8.995e-05,2]
[347517802,1735899044941,-2864.54,8.995e-05,2]
[347517803,1735899044950,-2550.83,8.995e-05,2]
[347517804,1735899044960,-500.0,8.995e-05,2]
[347517805,1735899044970,-500.0,8.995e-05,2]
[347517806,1735899044979,-500.0,8.995e-05,2]
[347517807,1735899044988,-1309.1,8.995e-05,2]
[347517808,1735899044997,-3808.66,8.995e-05,2]
[347517809,1735899045007,-500.0,8.995e-05,2]
[347517810,1735899045015,-500.0,8.995e-05,2]
[347517811,1735899045024,-619.32,8.995e-05,2]
[347517812,1735899045034,-1171.02,8.995e-05,2]
[347517813,1735899045044,-500.0,8.995e-05,2]
[347517814,1735899045053,-500.0,8.995e-05,2]
[347517815,1735899045063,-500.0,8.995e-05,2]
[347517816,1735899045072,-500.0,8.995e-05,2]
[347517817,1735899045083,-500.0,8.995e-05,2]
[347517818,1735899045094,-8958.03,8.995e-05,2]
[347517819,1735899045105,-500.0,8.995e-05,2]
[347517820,1735899045114,-500.0,8.995e-05,2]
[347517821,1735899045123,-830.69,8.995e-05,2]
[347517822,1735899045132,-1117.28,8.995e-05,2]
[347517823,1735899045141,-2517.45,8.995e-05,2]
[347517824,1735899045150,-500.0,8.995e-05,2]
[347517825,1735899045159,-6689.28,8.995e-05,2]
[347517826,1735899045169,-1560.18,8.995e-05,2]
[347517827,1735899045178,-500.0,8.995e-05,2]
[347517828,1735899045187,-991.98,8.995e-05,2]
[347517829,1735899045196,-991.98,8.995e-05,2]
[347517830,1735899045205,-500.0,8.995e-05,2]
[347517831,1735899045214,-724.73,8.995e-05,2]
[347517832,1735899045224,-1050.38,8.995e-05,2]
[347517833,1735899045233,-500.0,8.995e-05,2]
[347517834,1735899045242,-500.0,8.995e-05,2]
[347517835,1735899045250,-1375.52,8.995e-05,2]
[347517836,1735899045259,-1375.52,8.995e-05,2]
[347517837,1735899045269,-1077.33,8.995e-05,2]
[347517838,1735899045278,-500.0,8.995e-05,2]
[347517839,1735899045287,-3636.71,8.995e-05,2]
[347517840,1735899045297,-500.0,8.995e-05,2]
[347517841,1735899045306,-1529.69,8.995e-05,2]
[347517842,1735899045315,-1098.71,8.995e-05,2]
[347517843,1735899045324,-2285.33,8.995e-05,2]
[347517844,1735899045332,-1913.18,8.995e-05,2]
[347517845,1735899045341,-1082.25,8.995e-05,2]
[347517847,1735899045588,-500.0,8.995e-05,2]
[347517848,1735899045600,-1277.18,8.995e-05,2]
[347517849,1735899045609,-500.0,8.995e-05,2]
[347517850,1735899045618,-504.91473213,8.996e-05,2]
[347517851,1735899045627,-1029.72,8.996e-05,2]
[347517852,1735899045636,-500.0,8.996e-05,2]
[347517853,1735899045645,-798.98,8.996e-05,2]
[347517854,1735899045655,-882.59,8.996e-05,2]
[347517855,1735899045664,-500.0,8.996e-05,2]
[347517856,1735899045674,-612.21,8.996e-05,2]
[347517857,1735899045684,-500.0,8.996e-05,2]
[347517858,1735899045693,-309.35847401,8.996e-05,2]
[347517859,1735899045702,-500.0,8.996e-05,2]
[347517860,1735899045712,-613.58,8.996e-05,2]
[347517861,1735899045722,-1072.55392905,8.996e-05,3]
[347517862,1735899045731,-500.0,8.996e-05,2]
[347517863,1735899045740,-500.0,8.996e-05,2]
[347517864,1735899045749,-595.83,8.996e-05,2]
[347517865,1735899045759,-500.0,8.996e-05,2]
[347517866,1735899045768,-435.78270264,8.996e-05,2]
[347517867,1735899045778,-679.99,8.996e-05,2]
[347517868,1735899045787,-500.0,8.996e-05,2]
[347517869,1735899045801,-675.44,8.996e-05,2]
[347517870,1735899045811,-283.7779964,8.996e-05,2]
[347517871,1735899045820,-1018.47,8.996e-05,2]
[347517872,1735899045829,-602.59,8.996e-05,2]
[347517873,1735899045840,-500.0,8.996e-05,2]
[347517874,1735899045849,-500.0,8.996e-05,2]
[347517875,1735899045858,-2186.36,8.996e-05,2]
[347517876,1735899045868,-1190.28,8.996e-05,2]
[347517877,1735899045877,-500.0,8.996e-05,2]
[347517878,1735899045886,-1344.27,8.996e-05,2]
[347517879,1735899045896,-500.0,8.996e-05,2]
[347517880,1735899045906,-500.0,8.996e-05,2]
[347517881,1735899045916,-1189.45,8.996e-05,2]
[347517882,1735899045925,-500.0,8.996e-05,2]
[347517883,1735899045934,-1005.51,8.996e-05,2]
[347517884,1735899045943,-871.65,8.996e-05,2]
[347517885,1735899045952,-1819.57,8.996e-05,2]
[347517886,1735899045961,-500.0,8.996e-05,2]
[347517887,1735899045971,-500.0,8.996e-05,2]
[347517888,1735899045980,-500.0,8.996e-05,2]
[347517889,1735899045990,-500.0,8.996e-05,2]
[347517890,1735899045999,-500.0,8.996e-05,2]
[347517891,1735899046008,-825.05,8.996e-05,2]
[347517892,1735899046018,-686.33,8.996e-05,2]
[347517893,1735899046027,-1411.86,8.996e-05,2]
[347517894,1735899046035,-500.0,8.996e-05,2]
[347517895,1735899046045,-968.58,8.996e-05,2]
[347517896,1735899046054,-528.054592,8.996e-05,2]
[347517897,1735899046064,-630.92,8.996e-05,2]
[347517898,1735899046073,-572.3629831,8.996e-05,2]
[347517899,1735899046083,-1681.53,8.996e-05,2]
[347517900,1735899046092,-500.0,8.996e-05,2]
[347517901,1735899046101,-642.45,8.996e-05,2]
[347517902,1735899046111,-571.21,8.996e-05,2]
[347517903,1735899046120,-991.98,8.996e-05,2]
[347517905,1735899046129,-1375.52,8.996e-05,2]
[347517907,1735899046138,-1438.18,8.997e-05,2]
[347517909,1735899046147,-1063.23,8.997e-05,2]
[347517910,1735899046156,-946.14,8.997e-05,2]
[347517912,1735899046166,-1612.52,8.997e-05,2]
[347517915,1735899046175,-4413.73,8.997e-05,2]
[347517917,1735899046184,-2563.85,8.997e-05,2]
[347517919,1735899046193,-3868.2,8.997e-05,2]
[347517921,1735899046202,-9530.66,8.997e-05,2]
[347517923,1735899046212,-1104.06,8.997e-05,2]
[347517925,1735899046223,-1616.42,8.997e-05,2]
[347517927,1735899046232,-500.0,8.997e-05,2]
[347517929,1735899046242,-5700.94,8.997e-05,2]
[347517931,1735899046252,-1344.22,8.997e-05,2]
[347517932,1735899046261,-1684.4,8.997e-05,2]
[347517935,1735899046271,-3955.13,8.997e-05,2]
[347517937,1735899046282,-500.0,8.997e-05,2]
[347517939,1735899046291,-3036.34,8.997e-05,2]
[347517941,1735899046300,-2680.62,8.997e-05,2]
[347517943,1735899046310,-2064.58,8.997e-05,2]
[347517945,1735899046320,-500.99962643,8.997e-05,2]
[347517947,1735899046329,-2494.75,8.997e-05,2]
[347517949,1735899046338,-2104.05,8.997e-05,2]
[347517951,1735899046348,-991.98,8.997e-05,2]
[347517953,1735899046358,-1375.52,8.997e-05,2]
[347517955,1735899046369,-1000.0,9e-05,3]
[347517957,1735899046378,-200.0,9.041e-05,2]
[347517959,1735899046388,-500.0,9.068e-05,2]
[347517961,1735899046398,-991.98,9.071e-05,2]
[347517963,1735899046407,-1375.52,9.072e-05,2]
[347517965,1735899046416,-150.0,9.154e-05,2]
[347517967,1735899046425,-570.52,9.178e-05,2]